fUST/lending_fUST_20250626
["ID","MTS","AMOUNT","RATE_DAILY","PERIOD"]
[367605963,1750871449355,-460.0,0.00017808,2]
[367605965,1750871449365,-460.0,0.00017808,2]
[367605967,1750871449375,-460.0,0.00017808,2]
[367605969,1750871449384,-460.0,0.00017808,2]
[367605971,1750871449393,-460.0,0.00017808,2]
[367605973,1750871449402,-528.49,0.00017808,2]
[367605975,1750871449411,-460.0,0.00017808,2]
[367605977,1750871449421,-711.08,0.00017808,2]
[367605979,1750871449430,-765.02,0.00017808,2]
[367605981,1750871449439,-460.0,0.00017808,2]
[367605983,1750871449450,-460.0,0.00017808,2]
[367605985,1750871449459,-460.0,0.00017808,2]
[367605987,1750871449468,-1174.53,0.00017808,2]
[367605989,1750871449477,-460.0,0.00017808,2]
[367605991,1750871449487,-460.0,0.00017808,2]
[367605993,1750871449496,-460.0,0.00017808,2]
[367605996,1750871449506,-460.0,0.00017808,2]
[367605997,1750871449515,-467.03,0.00017808,2]
[367605999,1750871449524,-460.0,0.00017808,2]
[367606002,1750871449534,-460.0,0.00017808,2]
[367606004,1750871449544,-460.0,0.00017808,2]
[367606006,1750871449552,-460.0,0.00017808,2]
[367606007,1750871449562,-661.09,0.00017808,2]
[367606010,1750871449572,-481.26,0.00017808,2]
[367606012,1750871449581,-1491.21,0.00017808,2]
[367606014,1750871449590,-393.67519768,0.00017808,2]
[367606016,1750871449599,-460.0,0.00017808,2]
[367606018,1750871449608,-460.0,0.00017808,2]
[367606019,1750871449617,-1305.68,0.00017808,2]
[367606021,1750871449626,-551.48,0.00017808,2]
[367606024,1750871449636,-460.0,0.00017808,2]
[367606025,1750871449644,-460.0,0.00017808,2]
[367606027,1750871449653,-460.0,0.00017808,2]
[367606029,1750871449662,-4039.2,0.00017808,2]
[367606031,1750871449672,-1152.84,0.00017808,2]
[367606033,1750871449681,-460.0,0.00017808,2]
[367606035,1750871449690,-526.08,0.00017808,2]
[367606037,1750871449699,-460.0,0.00017808,2]
[367606039,1750871449708,-460.0,0.00017808,2]
[367606041,1750871449718,-460.0,0.00017808,2]
[367606043,1750871449727,-3062.4,0.00017808,2]
[367606045,1750871449736,-460.0,0.00017808,2]
[367606047,1750871449746,-460.0,0.00017808,2]
[367606049,1750871449755,-460.0,0.00017808,2]
[367606051,1750871449764,-3489.96,0.00017808,2]
[367606054,1750871449774,-503.24,0.00017808,2]
[367606056,1750871449783,-1360.9,0.00017808,2]
[367606058,1750871449793,-595.17,0.00017808,2]
[367606060,1750871449802,-726.11,0.00017808,2]
[367606062,1750871449811,-676.33,0.00017808,2]
[367606064,1750871449821,-460.0,0.00017808,2]
[367606066,1750871449830,-1834.36,0.00017808,2]
[367606068,1750871449840,-460.0,0.00017808,2]
[367606070,1750871449849,-3648.89,0.00017808,2]
[367606072,1750871449858,-853.71,0.00017808,2]
[367606074,1750871449867,-761.44,0.00017808,2]
[367606076,1750871449876,-4085.39,0.00017808,2]
[367606078,1750871449885,-896.29,0.00017808,2]
[367606080,1750871449894,-460.0,0.00017808,2]
[367606082,1750871449904,-557.19,0.00017808,2]
[367606084,1750871449913,-674.71,0.00017808,2]
[367606086,1750871449923,-1121.95,0.00017808,2]
[367606088,1750871449934,-460.0,0.00017808,2]
[367606090,1750871449942,-915.21,0.00017808,2]
[367606092,1750871449952,-1260.55,0.00017808,2]
[367606094,1750871449961,-460.0,0.00017808,2]
[367606096,1750871449970,-460.0,0.00017808,2]
[367606098,1750871449979,-460.0,0.00017808,2]
[367606100,1750871449988,-759.0,0.00017808,2]
[367606102,1750871449998,-460.0,0.00017808,2]
[367606104,1750871450007,-3195.38,0.00017808,2]
[367606106,1750871450017,-476.65,0.00017808,2]
[367606108,1750871450027,-460.0,0.00017808,2]
[367606110,1750871450036,-1894.36,0.00017808,2]
[367606112,1750871450045,-460.0,0.00017808,2]
[367606114,1750871450055,-1805.7,0.00017808,2]
[367606116,1750871450064,-638.48,0.00017808,2]
[367606118,1750871450073,-460.0,0.00017808,2]
[367606120,1750871450082,-863.87,0.00017808,2]
[367606122,1750871450091,-1275.28,0.00017808,2]
[367606124,1750871450100,-858.14,0.00017808,2]
[367606126,1750871450109,-748.96,0.00017808,2]
[367606128,1750871450120,-672.83,0.00017808,2]
[367606130,1750871450130,-1358.44,0.00017808,2]
[367606132,1750871450139,-594.05,0.00017808,2]
[367606134,1750871450149,-426.97956223,0.00017808,2]
[367606136,1750871450158,-460.0,0.00017808,2]
[367606137,1750871450167,-460.0,0.00017808,2]
[367606138,1750871450177,-460.0,0.00017808,2]
[367606139,1750871450186,-3385.35,0.00017808,2]
[367606140,1750871450195,-460.0,0.00017808,2]
[367606141,1750871450204,-460.0,0.00017808,2]
[367606142,1750871450213,-2822.39,0.00017808,2]
[367606143,1750871450223,-604.49,0.00017808,2]
[367606144,1750871450232,-460.0,0.00017808,2]
[367606145,1750871450241,-730.38,0.00017808,2]
[367606146,1750871450250,-300.0,0.00017856,2]
[367606147,1750871450259,-406.0,0.00017884,2]
[367606148,1750871450268,-336.0,0.00017935,2]
[367606149,1750871450281,-5000.0,0.00017972,2]
[367606150,1750871450290,-1283.01968392,0.00017982,2]
[367606151,1750871450299,-336.0,0.00017995,2]
[367606152,1750871450308,-1000.0,0.00018,2]
[367606153,1750871450318,-406.0,0.00018003,2]
[367606155,1750871450328,-406.0,0.00018003,2]
[367606157,1750871450338,-4524.55995623,0.00018003,2]
[367606159,1750871450347,-151.0,0.00018082,2]
[367606161,1750871450358,-262.65229,0.00018082,2]
[367606163,1750871450368,-151.0,0.00018082,2]
[367606165,1750871450377,-151.0,0.00018082,2]
[367606167,1750871450386,-151.0,0.00018082,2]
[367606169,1750871450395,-460.0,0.00018082,2]
[367606171,1750871450405,-460.0,0.00018082,2]
[367606173,1750871450414,-460.0,0.00018082,2]
[367606175,1750871450423,-460.0,0.00018082,2]
[367606177,1750871450434,-460.0,0.00018082,2]
[367606179,1750871450444,-460.0,0.00018082,2]
[367606181,1750871450453,-528.49,0.00018082,2]
[367606184,1750871450463,-460.0,0.00018082,2]
[367606185,1750871450472,-711.08,0.00018082,2]
[367606187,1750871450482,-765.02,0.00018082,2]
[367606190,1750871450491,-460.0,0.00018082,2]
[367606191,1750871450501,-460.0,0.00018082,2]
[367606193,1750871450511,-204.93351045,0.00018082,2]
[367606196,1750871450520,-1174.53,0.00018082,2]
[367606198,1750871450529,-460.0,0.00018082,2]
[367606199,1750871450539,-460.0,0.00018082,2]
[367606202,1750871450550,-460.0,0.00018082,2]
[367606203,1750871450560,-460.0,0.00018082,2]
[367606205,1750871450569,-467.03,0.00018082,2]
[367606208,1750871450579,-460.0,0.00018082,2]
[367606210,1750871450588,-460.0,0.00018082,2]
[367606212,1750871450598,-319.81666574,0.00018082,2]
[367606214,1750871450607,-460.0,0.00018082,2]
[367606216,1750871450616,-661.09,0.00018082,2]
[367606218,1750871450625,-481.26,0.00018082,2]
[367606220,1750871450634,-1491.21,0.00018082,2]
[367606222,1750871450643,-460.0,0.00018082,2]
[367606224,1750871450652,-460.0,0.00018082,2]
[367606226,1750871450661,-1305.68,0.00018082,2]
[367606228,1750871450671,-551.48,0.00018082,2]
[367606230,1750871450680,-460.0,0.00018082,2]
[367606232,1750871450690,-460.0,0.00018082,2]
[367606234,1750871450699,-460.0,0.00018082,2]
[367606236,1750871450709,-4039.2,0.00018082,2]
[367606238,1750871450718,-1152.84,0.00018082,2]
[367606240,1750871450727,-460.0,0.00018082,2]
[367606242,1750871450736,-526.08,0.00018082,2]
[367606244,1750871450746,-460.0,0.00018082,2]
[367606246,1750871450756,-460.0,0.00018082,2]
[367606248,1750871450765,-460.0,0.00018082,2]
[367606250,1750871450775,-3062.4,0.00018082,2]
[367606252,1750871450784,-460.0,0.00018082,2]
[367606254,1750871450793,-460.0,0.00018082,2]
[367606256,1750871450802,-460.0,0.00018082,2]
[367606258,1750871450810,-3489.96,0.00018082,2]
[367606260,1750871450819,-503.24,0.00018082,2]
[367606262,1750871450828,-1360.9,0.00018082,2]
[367606264,1750871450838,-595.17,0.00018082,2]
[367606266,1750871450847,-726.11,0.00018082,2]
[367606268,1750871450856,-676.33,0.00018082,2]
[367606270,1750871450865,-460.0,0.00018082,2]
[367606272,1750871450874,-1834.36,0.00018082,2]
[367606274,1750871450883,-460.0,0.00018082,2]
[367606276,1750871450892,-3648.89,0.00018082,2]
[367606278,1750871450901,-853.71,0.00018082,2]
[367606280,1750871450911,-148.51858493,0.00018082,2]
[367606401,1750871452174,-460.0,0.00016438,2]
[367606403,1750871452183,-500.0,0.00016438,2]
[367606405,1750871452192,-1082.16,0.00017808,2]
[367606407,1750871452201,-612.92141507,0.00018082,2]
[367606408,1750871452211,-474.47114258,0.00018082,2]
[367606457,1750871452784,-460.0,0.00016438,2]
[367606459,1750871452794,-381.80544865,0.00016438,2]
[367606461,1750871452806,-79.43703139,0.00016438,2]
[367606463,1750871452815,-460.0,0.00016438,2]
[367606465,1750871452824,-128.63633261,0.00016712,2]
[367606467,1750871452836,-331.36366739,0.00016712,2]
[367606469,1750871452845,-3610.91885742,0.00018082,2]
[367606470,1750871452855,-896.29,0.00018082,2]
[367606472,1750871452864,-460.0,0.00018082,2]
[367606474,1750871452873,-674.71,0.00018082,2]
[367606476,1750871452882,-1121.95,0.00018082,2]
[367606477,1750871452891,-460.0,0.00018082,2]
[367606479,1750871452900,-915.21,0.00018082,2]
[367606481,1750871452910,-1260.55,0.00018082,2]
[367606483,1750871452919,-460.0,0.00018082,2]
[367606485,1750871452928,-460.0,0.00018082,2]
[367606486,1750871452937,-151.0,0.00018082,2]
[367606488,1750871452946,-460.0,0.00018082,2]
[367606490,1750871452955,-759.0,0.00018082,2]
[367606492,1750871452965,-460.0,0.00018082,2]
[367606493,1750871452974,-3195.38,0.00018082,2]
[367606495,1750871452983,-476.65,0.00018082,2]
[367606497,1750871452992,-460.0,0.00018082,2]
[367606499,1750871453002,-1894.36,0.00018082,2]
[367606501,1750871453011,-151.0,0.00018082,2]
[367606502,1750871453020,-1805.7,0.00018082,2]
[367606504,1750871453030,-460.0,0.00018082,2]
[367606506,1750871453039,-638.48,0.00018082,2]
[367606508,1750871453048,-460.0,0.00018082,2]
[367606510,1750871453058,-863.87,0.00018082,2]
[367606512,1750871453068,-1275.28,0.00018082,2]
[367606513,1750871453077,-858.14,0.00018082,2]
[367606515,1750871453087,-748.96,0.00018082,2]
[367606517,1750871453096,-672.83,0.00018082,2]
[367606519,1750871453105,-1358.44,0.00018082,2]
[367606521,1750871453115,-460.0,0.00018082,2]
[367606522,1750871453124,-460.0,0.00018082,2]
[367606524,1750871453134,-460.0,0.00018082,2]
[367606526,1750871453143,-460.0,0.00018082,2]
[367606528,1750871453152,-2493.91747518,0.00018082,2]
[367606530,1750871453164,-302.0,0.00018082,2]
[367606532,1750871453175,-589.43252482,0.00018082,2]
[367606534,1750871453186,-460.0,0.00018082,2]
[367606535,1750871453196,-2822.39,0.00018082,2]
[367606537,1750871453205,-604.49,0.00018082,2]
[367606539,1750871453214,-460.0,0.00018082,2]
[367606541,1750871453224,-730.38,0.00018082,2]
[367606543,1750871453233,-1082.16,0.00018082,2]
[367606544,1750871453242,-151.0,0.00018082,2]
[367606546,1750871453252,-406.0,0.00018103,2]
[367606548,1750871453261,-500.0,0.00018118,2]
[367606550,1750871453272,-1000.0,0.00018177,2]
[367606551,1750871453283,-186.0,0.00018192,2]
[367606553,1750871453293,-151.0,0.00018192,2]
[367606555,1750871453303,-151.0,0.00018192,2]
[367606557,1750871453312,-151.0,0.00018192,2]
[367606559,1750871453322,-151.0,0.00018192,2]
[367606561,1750871453331,-151.0,0.00018192,2]
[367606562,1750871453340,-1500.0,0.00018221,2]
[367606564,1750871453351,-151.0,0.0001823,2]
[367606566,1750871453360,-151.0,0.0001823,2]
[367606568,1750871453369,-151.0,0.0001823,2]
[367606569,1750871453378,-253.284894,0.0001823,2]
[367606571,1750871453388,-406.0,0.0001823,2]
[367606573,1750871453397,-4524.55995623,0.00018279,2]
[367606575,1750871453406,-965.0,0.0001828,2]
[367606577,1750871453417,-654.0,0.0001828,2]
[367606578,1750871453426,-2161.0,0.0001828,2]
[367606580,1750871453435,-824.04,0.00018346,3]
[367606582,1750871453445,-412.02,0.00018346,3]
[367606584,1750871453454,-478.44,0.00018356,2]
[367606586,1750871453463,-460.0,0.00018356,2]
[367606588,1750871453473,-460.0,0.00018356,2]
[367606589,1750871453482,-460.0,0.00018356,2]
[367606591,1750871453491,-460.0,0.00018356,2]
[367606593,1750871453501,-460.0,0.00018356,2]
[367606595,1750871453510,-528.49,0.00018356,2]
[367606597,1750871453519,-460.0,0.00018356,2]
[367606598,1750871453528,-460.0,0.00018356,2]
[367606600,1750871453537,-460.0,0.00018356,2]
[367606602,1750871453546,-1174.53,0.00018356,2]
[367606604,1750871453556,-403.68060421,0.00018356,2]
[367606606,1750871453565,-460.0,0.00018356,2]
[367606608,1750871453574,-460.0,0.00018356,2]
[367606610,1750871453583,-460.0,0.00018356,2]
[367606612,1750871453592,-467.03,0.00018356,2]
[367606614,1750871453601,-151.0,0.00018356,2]
[367606616,1750871453610,-151.0,0.00018356,2]
[367606618,1750871453619,-460.0,0.00018356,2]
[367606620,1750871453628,-460.0,0.00018356,2]
[367606622,1750871453638,-460.0,0.00018356,2]
[367606623,1750871453647,-151.0,0.00018356,2]
[367606624,1750871453656,-661.09,0.00018356,2]
[367606625,1750871453666,-481.26,0.00018356,2]
[367606626,1750871453675,-1491.21,0.00018356,2]
[367606627,1750871453684,-460.0,0.00018356,2]
[367606628,1750871453694,-1305.68,0.00018356,2]
[367606629,1750871453703,-151.0,0.00018356,2]
[367606630,1750871453712,-151.0,0.00018356,2]
[367606631,1750871453722,-551.48,0.00018356,2]
[367606632,1750871453731,-460.0,0.00018356,2]
[367606633,1750871453741,-460.0,0.00018356,2]
[367606634,1750871453751,-460.0,0.00018356,2]
[367606635,1750871453761,-4039.2,0.00018356,2]
[367606636,1750871453771,-151.0,0.00018356,2]
[367606637,1750871453781,-1152.84,0.00018356,2]
[367606638,1750871453790,-460.0,0.00018356,2]
[367606639,1750871453799,-526.08,0.00018356,2]
[367606640,1750871453809,-460.0,0.00018356,2]
[367606641,1750871453819,-460.0,0.00018356,2]
[367606642,1750871453828,-460.0,0.00018356,2]
[367606643,1750871453838,-3062.4,0.00018356,2]
[367606644,1750871453847,-460.0,0.00018356,2]
[367606645,1750871453856,-315.28601818,0.00018356,2]
[367606646,1750871453866,-423.37940349,0.00018356,2]
[367606647,1750871453875,-3489.96,0.00018356,2]
[367606648,1750871453885,-503.24,0.00018356,2]
[367606649,1750871453894,-1360.9,0.00018356,2]
[367606650,1750871453904,-595.17,0.00018356,2]
[367606652,1750871453913,-726.11,0.00018356,2]
[367606653,1750871453922,-151.0,0.00018356,2]
[367606654,1750871453931,-676.33,0.00018356,2]
[367606656,1750871453941,-460.0,0.00018356,2]
[367606658,1750871453950,-1834.36,0.00018356,2]
[367606660,1750871453959,-151.0,0.00018356,2]
[367606661,1750871453968,-460.0,0.00018356,2]
[367606663,1750871453977,-3648.89,0.00018356,2]
[367606665,1750871453987,-853.71,0.00018356,2]
[367606667,1750871453996,-761.44,0.00018356,2]
[367606669,1750871454005,-1060.08448949,0.00018356,2]
[367606672,1750871454022,-151.0,0.00018082,2]
[367606675,1750871454033,-3025.30551051,0.00018356,2]
[367606677,1750871454047,-896.29,0.00018356,2]
[367606680,1750871454062,-460.0,0.00018356,2]
[367606682,1750871454075,-467.40448949,0.00018356,2]
[367610082,1750871523262,24900.0,0.00016043,2]
[367610083,1750871633940,5000.0,0.0001611,2]
[367610084,1750871650213,5000.0,0.0001611,2]
[367610085,1750871666424,5000.0,0.0001611,2]
[367610086,1750871681822,5000.0,0.0001611,2]
[367610087,1750871684555,187.21889265,0.00015945,2]
[367610089,1750871699959,5000.0,0.0001611,2]
[367610090,1750871715614,157.750169,0.00013699,2]
[367610091,1750871716160,5000.0,0.0001611,2]
[367610093,1750871731376,5000.0,0.0001611,2]
[367610094,1750871747787,5000.0,0.0001611,2]
[367610095,1750871764891,5000.0,0.0001611,2]
[367610096,1750871780122,5000.0,0.0001611,2]
[367610097,1750871796338,5000.0,0.0001611,2]
[367610098,1750871811603,5000.0,0.0001611,2]
[367610099,1750871826936,5000.0,0.0001611,2]
[367610100,1750871842249,5000.0,0.0001611,2]
[367610101,1750871857387,5000.0,0.0001611,2]
[367610102,1750871874542,5000.0,0.0001611,2]
[367610103,1750871883929,426.87187049,0.0001611,2]
[367610104,1750871890050,2292.7460617,0.00015557,2]
[367610105,1750871893066,5000.0,0.0001611,2]
[367610106,1750871908509,5000.0,0.0001611,2]
[367610107,1750871917821,377.52790321,0.00016072,2]
[367610108,1750871923788,5000.0,0.0001611,2]
[367610109,1750871941615,5000.0,0.0001611,2]
[367610110,1750871943860,350.585888,0.00015622,2]
[367610111,1750871957639,5000.0,0.0001611,2]
[367610112,1750871963136,5000.0,0.00016,2]
[367610113,1750871972848,5000.0,0.0001611,2]
[367610114,1750871988727,5000.0,0.0001611,2]
[367610115,1750871988948,188.45591727,0.00015945,2]
[367610116,1750872004481,5000.0,0.0001611,2]
[367610117,1750872007353,1384.9305259,0.00015445,2]
[367610118,1750872019867,5000.0,0.0001611,2]
[367610119,1750872035505,5000.0,0.0001611,2]
[367610120,1750872052222,5000.0,0.0001611,2]
[367610121,1750872070766,5000.0,0.0001611,2]
[367610122,1750872081639,167.46501969,0.0001611,2]
[367610123,1750872089590,5000.0,0.0001611,2]
[367610124,1750872104938,5000.0,0.0001611,2]
[367610125,1750872120850,5000.0,0.0001611,2]
[367610126,1750872136476,5000.0,0.0001611,2]
[367610127,1750872146453,817.2080351,0.00015769,2]
[367610128,1750872147771,1891.45891363,0.00016,2]
[367610129,1750872152660,5000.0,0.0001611,2]
[367610130,1750872157528,699.31462573,0.0001611,2]
[367610131,1750872168334,4111.13828228,0.0001611,2]
[367610132,1750872184053,5000.0,0.0001611,2]
[367610133,1750872200292,1262.51718976,0.0001611,2]
[367610134,1750872286247,201.60578012,0.00016072,2]
[367610135,1750872291517,300.18910329,0.00015687,2]
[367610164,1750872322450,901.15681376,0.0001611,2]
[367610165,1750872331921,155.0,0.0001611,2]
[367610167,1750872421400,187.29078355,0.00016104,2]
[367610168,1750872427732,5949.3589278,0.00015644,2]
[367610169,1750872458335,582.76218811,0.0001611,2]
[367610170,1750872459036,291.38109406,0.0001611,2]
[367610191,1750872520633,578.1347624,0.000149,2]
[367610192,1750872520907,1000.0,0.0001,2]
[367610194,1750872522105,187.29078355,0.000161,2]
[367610203,1750872554906,167.31909194,0.0001611,2]
[367610205,1750872557811,20420.50510947,0.00015644,2]
[367610206,1750872557836,93.57472803,0.00015644,2]
[367610210,1750872593303,180.11346198,0.00015848,2]
[367610215,1750872609259,12019.02305556,0.00015644,2]
[367610216,1750872609283,12880.97694444,0.00015644,2]
[367610217,1750872622506,187.29078355,0.00016084,2]
[367610232,1750872631994,-1315.953223,0.00016172,2]
[367610233,1750872632004,-243.79280493,0.00016184,2]
[367610234,1750872632013,-252.35262299,0.000162,2]
[367610235,1750872632024,-223.77599812,0.000163,2]
[367610236,1750872632034,-1200.0,0.00016337,2]
[367610237,1750872632044,-187.29078355,0.00016337,2]
[367610238,1750872632053,-1139.36927142,0.00016338,2]
[367610239,1750872632062,-1358.29567132,0.00016338,2]
[367610240,1750872632071,-197.18863574,0.00016338,2]
[367610241,1750872632080,-168.0,0.00016421,2]
[367610242,1750872632089,-300.0,0.00016427,2]
[367610243,1750872632099,-300.0,0.00016427,2]
[367610244,1750872632108,-300.0,0.00016427,2]
[367610245,1750872632118,-300.0,0.00016427,2]
[367610246,1750872632127,-750.41,0.00016428,3]
[367610247,1750872632136,-375.21,0.00016428,3]
[367610248,1750872632146,-375.21,0.00016428,3]
[367610250,1750872632155,-338.4,0.00016428,3]
[367610252,1750872632164,-169.2,0.00016428,3]
[367610254,1750872632173,-502.09,0.00016428,3]
[367610256,1750872632182,-438.7960548,0.00016428,3]
[367610257,1750872632371,-68.8039452,0.00016428,3]
[367610258,1750872632380,-500.0,0.00016437,2]
[367610259,1750872632390,-206.96231309,0.00016437,2]
[367610260,1750872632399,-500.0,0.00016437,2]
[367610261,1750872632408,-500.0,0.00016437,2]
[367610262,1750872632418,-500.0,0.00016437,2]
[367610263,1750872632427,-500.0,0.00016437,2]
[367610264,1750872632437,-500.0,0.00016437,2]
[367610265,1750872632447,-500.0,0.00016437,2]
[367610266,1750872632456,-301.14831384,0.00016437,2]
[367610272,1750872637980,-198.85168616,0.00016437,2]
[367610273,1750872637989,-500.0,0.00016437,2]
[367610274,1750872637999,-500.0,0.00016437,2]
[367610275,1750872638008,-500.0,0.00016437,2]
[367610276,1750872638017,-500.0,0.00016437,2]
[367610277,1750872638027,-500.0,0.00016437,2]
[367610278,1750872638036,-500.0,0.00016437,2]
[367610279,1750872638046,-500.0,0.00016437,2]
[367610280,1750872638056,-500.0,0.00016437,2]
[367610281,1750872638065,-500.0,0.00016437,2]
[367610282,1750872638075,-500.0,0.00016437,2]
[367610283,1750872638084,-500.0,0.00016437,2]
[367610284,1750872638094,-500.0,0.00016437,2]
[367610285,1750872638104,-500.0,0.00016437,2]
[367610286,1750872638113,-500.0,0.00016437,2]
[367610287,1750872638123,-500.0,0.00016437,2]
[367610288,1750872638132,-263.07786263,0.00016437,2]
[367610289,1750872638141,-500.0,0.00016437,2]
[367610290,1750872638151,-500.0,0.00016437,2]
[367610291,1750872638160,-1000.0,0.00016437,2]
[367610292,1750872638169,-1000.0,0.00016437,2]
[367610293,1750872638179,-1000.0,0.00016437,2]
[367610294,1750872638188,-1000.0,0.00016437,2]
[367610295,1750872638197,-903.93795612,0.00016437,2]
[367610296,1750872638207,-291.38109405,0.00016437,2]
[367610297,1750872638217,-460.0,0.00016438,2]
[367610298,1750872638228,-460.0,0.00016438,2]
[367610299,1750872638237,-460.0,0.00016438,2]
[367610300,1750872638247,-521.97829028,0.00016438,2]
[367610301,1750872638256,-460.0,0.00016438,2]
[367610302,1750872638266,-460.0,0.00016438,2]
[367610303,1750872638275,-500.0,0.00016438,2]
[367610304,1750872638285,-500.0,0.00016438,2]
[367610305,1750872638295,-460.0,0.00016438,2]
[367610306,1750872638305,-461.53242612,0.00016438,2]
[367610307,1750872638314,-460.0,0.00016438,2]
[367610308,1750872638323,-460.0,0.00016438,2]
[367610309,1750872638332,-460.0,0.00016438,2]
[367610310,1750872638342,-460.0,0.00016438,2]
[367610311,1750872638352,-460.0,0.00016438,2]
[367610312,1750872638362,-157.39256765,0.00016438,2]
[367610313,1750872638371,-460.0,0.00016438,2]
[367610314,1750872638380,-460.0,0.00016438,2]
[367610315,1750872638389,-460.0,0.00016438,2]
[367610316,1750872638399,-460.0,0.00016438,2]
[367610317,1750872638408,-460.0,0.00016438,2]
[367610318,1750872638418,-460.0,0.00016438,2]
[367610319,1750872638427,-460.0,0.00016438,2]
[367610320,1750872638437,-464.4263832,0.00016438,2]
[367610321,1750872638446,-460.0,0.00016438,2]
[367610322,1750872638456,-460.0,0.00016438,2]
[367610323,1750872638465,-304.25869774,0.00016438,2]
[367610324,1750872638474,-460.0,0.00016438,2]
[367610325,1750872638485,-461.42047245,0.00016438,2]
[367610326,1750872638494,-406.29024175,0.00016438,2]
[367610327,1750872638503,-565.82947754,0.00016438,2]
[367610328,1750872638518,-460.0,0.00016438,2]
[367610329,1750872638528,-460.0,0.00016438,2]
[367610330,1750872638538,-576.1725386,0.00016438,2]
[367610331,1750872638549,-460.0,0.00016438,2]
[367610332,1750872638560,-431.83149627,0.00016438,2]
[367610333,1750872638570,-460.0,0.00016438,2]
[367610334,1750872638580,-460.0,0.00016438,2]
[367610335,1750872638592,-460.0,0.00016438,2]
[367610336,1750872638602,-460.0,0.00016438,2]
[367610337,1750872638611,-460.0,0.00016438,2]
[367610338,1750872638622,-460.0,0.00016438,2]
[367610339,1750872638633,-460.0,0.00016438,2]
[367610340,1750872638643,-405.5052121,0.00016438,2]
[367610341,1750872638652,-460.0,0.00016438,2]
[367610342,1750872638662,-441.34659551,0.00016438,2]
[367610343,1750872638671,-460.0,0.00016438,2]
[367610344,1750872638681,-460.0,0.00016438,2]
[367610345,1750872638690,-460.0,0.00016438,2]
[367610346,1750872638700,-383.8295351,0.00016438,2]
[367610347,1750872638709,-460.0,0.00016438,2]
[367610348,1750872638719,-460.0,0.00016438,2]
[367610349,1750872638729,-460.0,0.00016438,2]
[367610350,1750872638738,-460.0,0.00016438,2]
[367610351,1750872638748,-460.0,0.00016438,2]
[367610352,1750872638757,-460.0,0.00016438,2]
[367610353,1750872638767,-460.0,0.00016438,2]
[367610354,1750872638776,-460.0,0.00016438,2]
[367610355,1750872638786,-152.17968508,0.00016438,2]
[367610356,1750872638795,-434.02098642,0.00016438,2]
[367610357,1750872638806,-460.0,0.00016438,2]
[367610358,1750872638815,-460.0,0.00016438,2]
[367610359,1750872638824,-167.29309569,0.00016438,2]
[367610360,1750872638834,-460.0,0.00016438,2]
[367610361,1750872638843,-460.0,0.00016438,2]
[367610362,1750872638852,-460.0,0.00016438,2]
[367610363,1750872638862,-460.0,0.00016438,2]
[367610364,1750872638874,-460.0,0.00016438,2]
[367610365,1750872638883,-460.0,0.00016438,2]